bitfinex-derivatives/quotes_SOLF0:USTF0_20260127
["timestamp","ask_amount","ask_price","bid_price","bid_amount"]
[1769512134248,3.41612209,123.86,123.82,7.56003553]
[1769512138748,10.69232209,123.86,123.82,7.56003553]
[1769512140648,3.32168478,123.85,123.8,316.8459525]
[1769512140843,3.32168478,123.85,123.8,320.14617859]
[1769512142246,3.32168478,123.85,123.81,3.30022609]
[1769512150655,3.32168478,123.85,123.81,10.86026162]
[1769512151350,3.32168478,123.84,123.81,7.56003553]
[1769512151550,3.32168478,123.84,123.8,1.70641697]
[1769512151751,3.32168478,123.84,123.79,12.28674306]
[1769512152558,10.59898478,123.84,123.79,5.00664306]
[1769512152757,10.59898478,123.84,123.79,3.30022609]
[1769512153258,10.59958478,123.83,123.77,327.46664306]
[1769512153458,10.59958478,123.83,123.78,3.30022609]
[1769512154359,10.59958478,123.83,123.78,5.00664306]
[1769512159868,10.59958478,123.83,123.78,12.28734306]
[1769512161966,113.1766,123.87,123.77,322.46]
[1769512161967,10.81363805,123.82,123.77,322.46]
[1769512162974,3.53503805,123.82,123.77,329.7413]
[1769512163175,3.53503805,123.82,123.77,7.2813]
[1769512166171,3.53503805,123.82,123.77,10.57866087]
[1769512166475,3.53503805,123.82,123.77,12.28507784]
[1769512168879,3.53503805,123.82,123.77,5.00377784]
[1769512171780,10.81343805,123.82,123.77,5.00377784]
[1769512171981,10.81343805,123.82,123.77,3.29736087]
[1769512173687,10.81343805,123.82,123.77,5.00377784]
[1769512181093,7.2778,123.83,123.78,3.29736087]
[1769512181292,7.2778,123.83,123.79,3.29736087]
[1769512181595,7.2778,123.83,123.79,5.00377784]
[1769512181788,7.2778,123.83,123.79,3.29736087]
[1769512182195,10.75228879,123.84,123.79,3.29736087]
[1769512184799,10.75228879,123.84,123.79,5.00377784]
[1769512187300,3.47498879,123.87,123.81,5.00377784]
[1769512187603,3.47498879,123.87,123.82,5.00377784]
[1769512188991,7.2761,123.86,123.82,5.00377784]
[1769512189895,10.75108879,123.86,123.82,1.70641697]
[1769512190092,10.75108879,123.86,123.81,1.70641697]
[1769512191189,10.75108879,123.86,123.81,5.00377784]
[1769512191598,10.75108879,123.86,123.82,3.29736087]
[1769512191800,10.75108879,123.86,123.82,5.00377784]
[1769512193301,10.75108879,123.86,123.82,1.70641697]
[1769512193603,10.75108879,123.86,123.82,1.70615198]
[1769512196999,10.75108879,123.86,123.81,5.14231564]
[1769512198106,10.75108879,123.86,123.81,3.43616366]
[1769512200406,3.47498879,123.86,123.81,10.71496366]
[1769512200598,3.47498879,123.86,123.81,12.42111564]
[1769512201903,3.47498879,123.86,123.81,10.71496366]
[1769512203702,3.41451262,123.85,123.79,5.14231564]
[1769512203904,5.1206646,123.83,123.77,3.43616366]
[1769512204407,12.3985646,123.83,123.77,10.71696366]
[1769512204910,12.3985646,123.83,123.78,7.2805]
[1769512211713,10.69241262,123.83,123.78,7.2805]
[1769512211915,3.41451262,123.83,123.78,7.2805]
[1769512213115,3.41451262,123.83,123.78,10.71666366]
[1769512237539,10.69231262,123.83,123.78,10.71666366]
[1769512238238,10.69231262,123.83,123.78,18.27443666]
[1769512240338,123.0408008,123.87,123.8,5.20392592]
[1769512240537,123.0408008,123.87,123.81,3.49777394]
[1769512241338,3.19464882,123.86,123.81,3.49777394]
[1769512241941,10.47114882,123.86,123.81,3.49777394]
[1769512245944,12.1773008,123.86,123.81,3.49777394]
[1769512247744,10.47114882,123.86,123.81,3.49777394]
[1769512251251,10.47134882,123.85,123.8,7.557773]
[1769512251447,10.47134882,123.85,123.79,12.76169892]
[1769512252251,10.47134882,123.85,123.8,3.49777394]
[1769512254153,3.40358704,123.84,123.79,7.28]
[1769512254549,3.40358704,123.84,123.79,10.70111246]
[1769512263153,3.40358704,123.84,123.79,12.40802891]
[1769512264149,3.40358704,123.84,123.79,19.96580191]
[1769512264354,3.40358704,123.84,123.79,18.25888546]
[1769512266551,3.40358704,123.84,123.8,7.2795]
[1769512275267,3.40358704,123.84,123.79,18.25888546]
[1769512278370,3.40358704,123.84,123.8,7.557773]
[1769512279271,3.40358704,123.84,123.79,18.25888546]
[1769512279871,3.40358704,123.84,123.8,7.557773]
[1769512288676,3.40358704,123.84,123.79,18.25888546]
[1769512289475,3.40358704,123.84,123.78,7.557773]
[1769512289673,3.26029749,123.82,123.77,10.79338886]
[1769512289977,4.96721394,123.82,123.77,10.79338886]
[1769512290177,3.26029749,123.81,123.77,7.557773]
[1769512291381,3.26029749,123.81,123.76,10.79338886]
[1769512291678,3.26029749,123.81,123.77,7.557773]
[1769512291876,10.53929749,123.81,123.77,7.557773]
[1769512292180,10.53929749,123.81,123.76,10.79338886]
[1769512292775,10.53929749,123.81,123.77,7.557773]
[1769512293282,10.53929749,123.81,123.76,10.79338886]
[1769512293582,10.53929749,123.81,123.76,10.80143275]
[1769512297588,10.53929749,123.81,123.76,3.23561586]
[1769512298498,3.26029749,123.81,123.76,3.23561586]
[1769512298888,3.26029749,123.81,123.76,10.80143275]
[1769512299088,3.26029749,123.81,123.76,3.23561586]
[1769512299995,3.26029749,123.81,123.76,10.51751586]
[1769512305098,3.26029749,123.81,123.77,10.51641586]
[1769512305293,4.96808727,123.83,123.77,10.51641586]
[1769512305794,12.24588727,123.83,123.77,10.51641586]
[1769512306298,3.26029749,123.82,123.77,10.51641586]
[1769512307202,3.26029749,123.82,123.78,7.2807]
[1769512323523,3.35588358,123.84,123.8,3.19791721]
[1769512324217,3.35588358,123.84,123.8,10.47721721]
[1769512324514,3.35588358,123.86,123.81,3.19791721]
[1769512325920,3.35588358,123.86,123.81,10.47681721]
[1769512330824,3.35588358,123.86,123.81,3.19791721]
[1769512336836,3.35588358,123.86,123.81,10.47691721]
[1769512340137,5.06359454,123.86,123.81,10.47691721]
[1769512344843,12.33969454,123.86,123.81,3.19791721]
[1769512346242,10.75463948,123.85,123.79,5.15082778]
[1769512346538,10.75463948,123.85,123.8,3.44311682]
[1769512347536,12.46235044,123.85,123.8,3.44311682]
[1769512347730,8.98441096,123.85,123.8,3.44311682]
[1769512347944,3.47793948,123.83,123.78,3.44311682]
[1769512349041,3.47793948,123.83,123.78,10.72361682]
[1769512350538,10.75583948,123.83,123.78,3.44311682]
[1769512354342,10.75503948,123.85,123.79,3.44311682]
[1769512354537,10.75503948,123.85,123.8,3.44311682]
[1769512360249,10.75503948,123.85,123.8,5.15082778]
[1769512361955,10.75503948,123.85,123.8,3.44311682]
[1769512372968,10.75503948,123.85,123.8,10.99746272]
[1769512374766,7.2771,123.85,123.81,3.44555424]
[1769512383074,5.02710036,123.86,123.81,3.44555424]
[1769512383075,10.5964904,123.86,123.81,3.44555424]
[1769512385276,12.30320036,123.86,123.81,3.44555424]
[1769512388878,10.5964904,123.86,123.81,3.44555424]
[1769512389079,12.30320036,123.86,123.81,3.44555424]
[1769512390282,10.5964904,123.86,123.81,3.44555424]
[1769512395585,3.3203904,123.86,123.81,3.44555424]
[1769512396985,5.02710036,123.86,123.81,3.44555424]
[1769512397691,3.3203904,123.86,123.81,3.44555424]
[1769512398583,5.02710036,123.86,123.81,3.44555424]
[1769512398787,12.30320036,123.86,123.81,3.44555424]
[1769512398988,12.30320036,123.86,123.81,10.99990014]
[1769512406293,3.36672858,123.85,123.81,10.99990014]
[1769512408295,3.36672858,123.85,123.81,7.5543459]
[1769512412000,3.36672858,123.85,123.81,10.95115416]
[1769512414006,3.36672858,123.87,123.82,10.95115416]
[1769512415091,3.36672858,123.86,123.82,10.95115416]
[1769512415297,3.36672858,123.86,123.82,7.5543459]
[1769512422814,7.2756,123.87,123.82,10.95115416]
[1769512423309,10.64232858,123.87,123.82,10.95115416]
[1769512434729,10.64232858,123.87,123.82,3.39680826]
[1769512437827,1.70670996,123.88,123.82,3.39680826]
[1769512438030,1.70670996,123.88,123.81,16.53995586]
[1769512438031,7.2749,123.88,123.84,3.51044398]
[1769512445534,7.2749,123.88,123.82,12.77066371]
[1769512445535,7.2755,123.87,123.82,12.77066371]
[1769512447831,7.2755,123.87,123.82,20.04906371]
[1769512450938,3.51839892,123.88,123.82,20.04906371]
[1769512454741,3.51839892,123.88,123.83,7.2778]
[1769512454935,3.51839892,123.88,123.83,10.78824398]
[1769512455440,3.51839892,123.88,123.83,18.34258988]
[1769512460837,3.51839892,123.88,123.83,14.8321459]
[1769512461040,128.73807275,123.9,123.84,3.51044398]
[1769512461533,3.39551927,123.89,123.84,3.51044398]
[1769512462044,5.1013931,123.89,123.84,3.51044398]
[1769512463839,12.3759931,123.89,123.84,3.51044398]
[1769512465544,7.2749,123.88,123.84,3.51044398]
[1769512470852,3.39551927,123.89,123.84,3.51044398]
[1769512472048,14.5424,123.95,123.85,3.33176727]
[1769512472049,4.91550552,123.91,123.85,3.33176727]
[1769512473052,3.20963169,123.9,123.85,10.60806727]
[1769512474858,4.91550552,123.9,123.85,10.60806727]
[1769512475557,3.20963169,123.9,123.85,10.60806727]
[1769512475757,4.91550552,123.9,123.85,10.60806727]
[1769512477859,4.91550552,123.89,123.84,10.60876727]
[1769512480158,4.91550552,123.89,123.84,18.16311317]
[1769512480357,4.91550552,123.89,123.84,10.60876727]
[1769512480959,4.91550552,123.89,123.84,10.88611317]
[1769512482163,12.18980552,123.89,123.85,7.5543459]
[1769512483558,12.18980552,123.89,123.84,10.88611317]
[1769512483961,4.91550552,123.87,123.83,7.5543459]
[1769512485261,1.70587383,123.86,123.82,10.88611317]
[1769512485656,4.91550552,123.86,123.82,10.88611317]
[1769512486361,4.91550552,123.86,123.82,3.33176727]
[1769512498171,3.20963169,123.86,123.82,3.33176727]
[1769512498971,3.20963169,123.86,123.81,7.2789]
[1769512499172,4.91550552,123.86,123.81,7.2789]
[1769512500473,3.20963169,123.86,123.81,10.5366962]
[1769512500677,3.20963169,123.86,123.82,10.5360962]
[1769512501166,113.1401,123.91,123.82,10.5360962]
[1769512501167,12.459125,123.88,123.82,10.5360962]
[1769512501570,12.45933193,123.88,123.82,10.5360962]
[1769512501970,7.2743,123.89,123.84,3.2577962]
[1769512502974,7.2743,123.89,123.84,4.96387696]
[1769512503171,3.47835117,123.9,123.84,3.2577962]
[1769512503669,237.4828,123.93,123.84,3.2577962]
[1769512503670,3.47835117,123.88,123.84,3.2577962]
[1769512504573,12.45933193,123.88,123.82,10.5361962]
[1769512505176,10.75325117,123.88,123.82,10.5361962]
[1769512507084,10.75325117,123.88,123.82,3.2577962]
[1769512509085,7.2755,123.87,123.82,3.2577962]
[1769512510378,7.2755,123.87,123.83,3.2577962]
[1769512510890,10.75325117,123.88,123.83,3.2577962]
[1769512519685,7.2749,123.88,123.83,3.2577962]
[1769512519892,7.2749,123.88,123.84,3.2577962]
[1769512525896,3.47835117,123.89,123.84,3.2577962]
[1769512526892,3.47835117,123.89,123.84,4.96387696]
[1769512529190,3.44565111,123.88,123.84,3.2577962]
[1769512533896,3.44565111,123.88,123.84,10.5349962]
[1769512534897,3.44565111,123.87,123.82,7.5535074]
[1769512535098,3.44565111,123.87,123.81,10.89687191]
[1769512535885,3.44565111,123.87,123.82,7.2781]
[1769512536090,5.15173187,123.87,123.82,10.89687191]
[1769512536388,3.44565111,123.87,123.82,10.89687191]
[1769512536894,3.44565111,123.87,123.83,7.2777]
[1769512538491,3.44565111,123.87,123.83,10.62106451]
[1769512538796,1.70608076,123.88,123.83,18.17457191]
[1769512538994,5.15173187,123.89,123.83,18.17457191]
[1769512540199,5.15173187,123.89,123.84,7.2772]
[1769512541400,3.44565111,123.88,123.84,7.2772]
[1769512544797,3.44565111,123.88,123.83,18.17467191]
[1769512549005,7.2744,123.89,123.85,3.34336451]
[1769512549799,10.72005111,123.89,123.85,3.34336451]
[1769512550501,10.72005111,123.89,123.84,14.8306074]
[1769512552404,10.72005111,123.89,123.84,18.17397191]
[1769512552908,3.44565111,123.89,123.84,18.17397191]
[1769512554810,12.2386944,123.91,123.85,10.91341623]
[1769512555010,3.25901364,123.9,123.85,10.91341623]
[1769512558807,10.53291364,123.9,123.85,10.91341623]
[1769512564919,7.2739,123.9,123.86,3.35990883]
[1769512570331,10.53221364,123.91,123.86,3.35990883]
[1769512570533,3.25901364,123.93,123.87,3.35990883]
[1769512571028,3.25901364,123.92,123.87,3.35990883]
[1769512571233,3.25901364,123.91,123.85,10.91341623]
[1769512572031,3.25901364,123.91,123.85,18.18941623]
[1769512572630,3.25901364,123.91,123.86,7.2759]
[1769512573735,3.25901364,123.9,123.85,10.91341623]
[1769512575035,3.25901364,123.9,123.85,18.19001623]
[1769512576830,3.25901364,123.9,123.85,10.91341623]
[1769512581837,10.53271364,123.9,123.85,10.91341623]
[1769512584745,10.53271364,123.9,123.86,3.37947835]
[1769512585540,10.53271364,123.9,123.86,10.93298575]
[1769512587741,12.52092391,123.92,123.86,10.93298575]
[1769512588039,10.81558394,123.92,123.86,10.93298575]
[1769512588432,10.81558394,123.92,123.86,18.20898575]
[1769512588637,7.273,123.92,123.88,3.37947835]
[1769512589936,10.81558394,123.92,123.88,3.37947835]
[1769512594435,10.81558394,123.92,123.87,7.5535074]
[1769512595440,10.81558394,123.92,123.87,10.93298575]
[1769512598244,10.81558394,123.92,123.87,12.63832572]
[1769512598541,10.81558394,123.92,123.87,19.91372572]
[1769512601443,7.273,123.92,123.88,10.93298575]
[1769512602342,7.2717,123.94,123.89,3.37947835]
[1769512602541,7.2717,123.94,123.9,3.37947835]
[1769512608844,3.54258394,123.95,123.9,3.37947835]
[1769512609743,10.81348394,123.95,123.9,5.08481832]
[1769512612348,10.81348394,123.95,123.9,3.37947835]
[1769512614254,7.2714,123.94,123.9,3.37947835]
[1769512618952,10.81338394,123.95,123.9,5.08481832]
[1769512619161,10.81338394,123.95,123.9,3.37947835]
[1769512619658,3.48029163,123.94,123.88,10.5822212]
[1769512620355,3.48029163,123.94,123.88,18.1357286]
[1769512621055,3.48029163,123.94,123.88,10.5822212]
[1769512622558,3.48029163,123.93,123.88,10.5822212]
[1769512628464,3.48029163,123.93,123.87,9.23654627]
[1769512628465,5.1846948,123.91,123.86,10.8395643]
[1769512628674,3.48029163,123.9,123.86,3.3074212]
[1769512628867,3.48029163,123.9,123.86,10.8395643]
[1769512629964,3.48029163,123.9,123.86,18.1155643]
[1769512636777,1.70440317,123.89,123.86,7.5321431]
[1769512636971,1.70440317,123.89,123.85,7.5321431]
[1769512637167,5.1846948,123.9,123.85,7.5321431]
[1769512637875,12.4589948,123.9,123.85,7.5321431]
[1769512638169,12.4589948,123.9,123.84,18.1161643]
[1769512638876,10.75459163,123.89,123.84,18.1161643]
[1769512639682,10.75459163,123.89,123.85,3.3074212]
[1769512639879,12.4589948,123.89,123.85,3.3074212]
[1769512640779,12.4589948,123.89,123.84,7.5321431]
[1769512641182,1.70440317,123.87,123.83,305.1195643]
[1769512641482,1.70440317,123.87,123.83,10.8395643]
[1769512642777,10.75519163,123.88,123.83,10.8395643]
[1769512646087,10.75519163,123.88,123.83,3.3074212]
[1769512648887,12.4595948,123.88,123.83,3.3074212]
[1769512649987,3.2744908,123.87,123.82,7.2782]
[1769512650696,3.2744908,123.87,123.82,10.65973421]
[1769512655404,3.2744908,123.87,123.83,3.38153421]
[1769512662012,3.2744908,123.87,123.83,10.65923421]
[1769512662212,3.2744908,123.87,123.83,3.38153421]
[1769512662409,3.2744908,123.87,123.81,5.08593738]
[1769512662713,3.2744908,123.86,123.82,3.38153421]
[1769512664010,7.2748,123.89,123.82,3.38153421]
[1769512664216,4.97889397,123.88,123.82,10.65983421]
[1769512664411,3.2744908,123.87,123.82,10.65983421]
[1769512664812,3.2744908,123.87,123.82,3.38153421]
[1769512665008,1.70440317,123.87,123.82,3.38153421]
[1769512665212,3.2744908,123.86,123.82,3.38153421]
[1769512670814,3.2744908,123.86,123.81,7.2789]
[1769512671718,3.2744908,123.86,123.81,10.66043421]
[1769512677821,12.25499397,123.86,123.81,3.38153421]
[1769512678225,10.5505908,123.86,123.81,3.38153421]
[1769512678621,3.46123312,123.85,123.81,3.38153421]
[1769512678826,3.46123312,123.85,123.8,309.0395]
[1769512679424,3.46123312,123.85,123.8,312.39686774]
[1769512679826,10.73783312,123.85,123.8,301.76]
[1769512680029,3.46123312,123.84,123.8,301.76]
[1769512680321,3.46123312,123.84,123.79,7.28]
[1769512680827,3.46123312,123.84,123.8,7.2795]
[1769512682530,3.46123312,123.83,123.78,3.35736774]
[1769512682729,3.46123312,123.81,123.76,10.88951084]
[1769512683131,7.2796,123.8,123.76,3.35736774]
[1769512683828,10.74023312,123.81,123.76,3.35736774]
[1769512688631,10.74023312,123.81,123.76,5.06526276]
[1769512688834,10.74023312,123.81,123.76,3.35736774]
[1769512690840,3.46123312,123.81,123.76,3.35736774]
[1769512691242,3.46123312,123.81,123.76,10.63926774]
[1769512696846,3.46123312,123.81,123.76,7.2819]
[1769512698946,10.74023312,123.81,123.76,7.2819]
[1769512701141,3.46123312,123.81,123.76,10.63926774]
[1769512701337,3.46123312,123.81,123.77,3.21519922]
[1769512702244,7.2784,123.82,123.78,3.21519922]
[1769512706754,10.72717417,123.83,123.78,3.21519922]
[1769512712764,3.28834539,123.82,123.77,8.98909502]
[1769512712963,10.56694539,123.82,123.77,7.2812]
[1769512713460,3.28834539,123.81,123.77,7.2812]
[1769512718167,3.28834539,123.81,123.77,10.82804311]
[1769512721064,3.28834539,123.81,123.77,3.54684311]
[1769512722466,10.56614539,123.83,123.77,10.82794311]
[1769512723267,10.56614539,123.83,123.77,18.36008621]
[1769512724268,3.28834539,123.82,123.77,18.36008621]
[1769512725960,3.28834539,123.81,123.77,11.07898621]
[1769512726159,3.28834539,123.81,123.77,3.54684311]
[1769512726564,3.28834539,123.81,123.77,11.07898621]
[1769512739480,3.28834539,123.81,123.77,3.54684311]
[1769512741386,12.27534041,123.81,123.76,7.5321431]
[1769512741884,12.27534041,123.81,123.75,10.9787397]
[1769512742085,4.96752555,123.79,123.75,7.5321431]
[1769512742273,4.96752555,123.79,123.74,10.9787397]
[1769512742984,3.25963053,123.79,123.74,10.9787397]
[1769512743978,10.53983053,123.79,123.74,10.9787397]
[1769512744385,10.53983053,123.79,123.74,3.4465966]
[1769512753688,10.53983053,123.79,123.74,10.7295966]
[1769512762597,10.61090892,123.81,123.75,10.75935201]
[1769512762791,12.3195726,123.81,123.75,10.75935201]
[1769512764596,3.2535642,123.8,123.75,10.75935201]
[1769512765296,3.2535642,123.8,123.76,3.1966005]
[1769512770001,7.2794,123.81,123.76,3.1966005]
[1769512770398,10.5329642,123.81,123.76,3.1966005]
[1769512776394,3.2535642,123.79,123.74,4.90526418]
[1769512776599,3.2535642,123.79,123.74,3.1966005]
[1769512777908,10.5336642,123.79,123.74,3.1966005]
[1769512793220,3.2535642,123.78,123.74,3.1966005]
[1769512793522,3.2535642,123.78,123.74,10.77145445]
[1769512794830,3.2535642,123.78,123.74,3.1966005]
[1769512796127,3.2535642,123.78,123.74,4.90526418]
[1769512800726,3.2535642,123.78,123.74,12.48011813]
[1769512801932,10.82124619,123.79,123.74,12.48011813]
[1769512804437,3.54114619,123.78,123.74,10.77145445]
[1769512804733,3.54114619,123.78,123.73,7.2832]
[1769512804734,3.54114619,123.78,123.73,14.85805395]
[1769512804935,3.54114619,123.78,123.73,18.05919619]
[1769512807139,3.54114619,123.78,123.73,19.76785987]
[1769512807536,3.54114619,123.78,123.73,19.76775808]
[1769512807738,3.54114619,123.78,123.73,19.77148913]
[1769512810138,3.54114619,123.76,123.73,7.578585]
[1769512810336,3.54114619,123.76,123.72,7.578585]
[1769512811441,3.54114619,123.76,123.71,18.06452724]
[1769512812140,10.82304619,123.76,123.71,18.06452724]
[1769512812838,3.54114619,123.76,123.71,18.06452724]
[1769512817949,3.54114619,123.76,123.71,19.77308913]
[1769512818444,3.54114619,123.75,123.71,10.77972724]
[1769512818750,3.54114619,123.75,123.7,7.578585]
[1769512820043,10.82394619,123.75,123.7,7.578585]
[1769512821850,10.82394619,123.75,123.69,18.06542724]
[1769512822349,12.53250808,123.75,123.69,18.06542724]
[1769512823049,12.53250808,123.75,123.7,3.30865391]
[1769512823245,10.82394619,123.75,123.7,3.30865391]
[1769512823452,10.82394619,123.75,123.7,5.0172158]
[1769512827449,3.54114619,123.75,123.71,3.50943072]
[1769512828947,10.82364619,123.75,123.71,3.50943072]
[1769512833961,10.82364619,123.75,123.69,20.08247761]
[1769512834354,10.82364619,123.75,123.69,16.57304689]
[1769512834559,10.82364619,123.75,123.7,3.50943072]
[1769512839472,3.54114619,123.75,123.7,10.79463072]
[1769512840064,3.54114619,123.75,123.7,12.50319261]
[1769512840269,7.282,123.76,123.71,3.50943072]
[1769512840671,10.60616647,123.76,123.71,3.50943072]
[1769512849179,3.32416647,123.75,123.71,3.50943072]
[1769512852477,10.60676647,123.75,123.71,3.50943072]
[1769512852677,3.32416647,123.74,123.69,3.50943072]
[1769512853879,3.32416647,123.74,123.69,10.79543072]
[1769512859385,10.60726647,123.74,123.69,10.79543072]
[1769512859580,10.60726647,123.74,123.69,3.50943072]
[1769512861385,3.21624553,123.73,123.68,329.9265]
[1769512861582,10.50014553,123.73,123.68,329.9265]
[1769512861782,10.50014553,123.73,123.68,333.2951233]
[1769512862489,10.50014553,123.73,123.68,335.00368519]
[1769512863680,10.50014553,123.73,123.68,327.71718519]
[1769512865891,10.50014553,123.73,123.68,335.00368519]
[1769512866093,3.21624553,123.73,123.68,335.00368519]
[1769512868287,10.50014553,123.73,123.68,326.0086233]
[1769512868494,10.50014553,123.73,123.68,3.3686233]
[1769512870092,10.50014553,123.73,123.68,10.6552233]
[1769512882394,7.2843,123.72,123.68,3.3686233]
[1769512888307,10.50004553,123.73,123.68,3.3686233]
[1769512890001,3.21624553,123.73,123.68,3.3686233]
[1769512890207,10.55608412,123.74,123.69,3.45538288]
[1769512903717,3.27288412,123.73,123.69,3.45538288]
[1769512906722,3.27288412,123.73,123.67,12.74512612]
[1769512906919,3.27288412,123.72,123.67,3.45538288]
[1769512907925,10.55718412,123.72,123.67,3.45538288]
[1769512909119,7.2849,123.71,123.67,3.45538288]
[1769512909320,10.55778412,123.71,123.67,3.45538288]
[1769512910429,10.55778412,123.71,123.67,5.16576796]
[1769512919637,3.26260179,123.7,123.67,1.71038508]
[1769512919837,10.54810179,123.7,123.67,1.71038508]
[1769512923637,10.54870179,123.69,123.67,1.71038508]
[1769512925138,3.26260179,123.68,123.66,1.71038508]
[1769512925437,113.305,123.73,123.66,1.71038508]
[1769512927531,10.54860179,123.7,123.66,1.71038508]
[1769512929839,3.26260179,123.68,123.66,1.71038508]
[1769512930040,7.2863,123.69,123.66,1.71038508]
[1769512930340,239.6756,123.72,123.66,8.508e-05]
[1769512930740,113.3237,123.71,123.62,10.85919448]
[1769512931055,113.3397,123.69,123.64,1.71038508]
[1769512931540,113.3397,123.69,123.64,1.71131177]
[1769512931847,7.2873,123.67,123.64,1.71131177]
[1769512932040,9.69918967,123.67,123.64,1.71131177]
[1769512932940,9.69918967,123.67,123.64,1.177e-05]
[1769512932941,7.2881,123.66,123.64,1.177e-05]
[1769512933144,2.41188967,123.67,123.64,1.177e-05]
[1769512933942,7.2881,123.66,123.64,1.71131177]
[1769512934243,2.41188967,123.67,123.64,1.71131177]
[1769512935038,7.2881,123.66,123.64,1.71131177]
[1769512935333,2.41188967,123.67,123.64,1.71131177]
[1769512935937,7.2881,123.66,123.64,1.71131177]
[1769512936134,2.41188967,123.67,123.64,1.71131177]
[1769512937049,7.2881,123.66,123.64,1.71131177]
[1769512937248,2.41188967,123.67,123.64,1.71131177]
[1769512937948,7.2881,123.66,123.64,1.71131177]
[1769512938148,2.41188967,123.67,123.64,1.71131177]
[1769512938947,7.2881,123.66,123.64,1.71131177]
[1769512939147,2.41188967,123.67,123.61,3.2862692]
[1769512939348,2.41188967,123.67,123.64,1.71131177]
[1769512939951,7.2881,123.66,123.64,1.71131177]
[1769512940147,2.41188967,123.67,123.64,1.71131177]
[1769512941953,9.69908967,123.67,123.64,1.71131177]
[1769512942148,2.41188967,123.67,123.64,1.71131177]
[1769512942349,2.41188967,123.67,123.64,1.177e-05]
[1769512942653,9.70120316,123.66,123.64,1.177e-05]
[1769512943254,9.70180316,123.65,123.62,1.71131177]
[1769512944056,131.78,123.68,123.62,1.71131177]
[1769512944755,7.2882,123.66,123.62,1.71131177]
[1769512948355,113.3574,123.67,123.6,3.41149953]
[1769512948552,113.3574,123.67,123.62,1.71131177]
[1769512949259,7.2888,123.65,123.62,1.71131177]
[1769512967674,142.5,123.67,123.63,3.55043833]
[1769512967976,144.24,123.7,123.64,1.71131177]
[1769512968176,7.2871,123.68,123.64,1.71131177]
[1769512971088,144.24,123.7,123.66,1.71131177]
[1769512971976,7.2871,123.68,123.66,1.71131177]
[1769512972173,144.24,123.7,123.66,1.177e-05]
[1769512972878,7.2871,123.68,123.66,1.177e-05]
[1769512973177,144.24,123.7,123.66,1.177e-05]
[1769512973975,7.2871,123.68,123.66,1.177e-05]
[1769512974186,144.24,123.7,123.66,1.177e-05]
[1769512974884,7.2871,123.68,123.66,1.177e-05]
[1769512975386,144.24,123.7,123.66,1.177e-05]
[1769512975984,7.2871,123.68,123.66,1.177e-05]
[1769512976186,144.24,123.7,123.66,1.177e-05]
[1769512976881,7.2871,123.68,123.66,1.177e-05]
[1769512977081,144.24,123.7,123.66,1.177e-05]
[1769512977888,7.2871,123.68,123.66,1.177e-05]
[1769512978187,144.24,123.7,123.66,1.177e-05]
[1769512978887,7.2871,123.68,123.66,1.177e-05]
[1769512979289,144.24,123.7,123.66,1.177e-05]
[1769512979982,7.2871,123.68,123.66,1.177e-05]
[1769512980187,144.24,123.7,123.66,1.177e-05]
[1769512980889,7.2871,123.68,123.66,1.177e-05]
[1769512981188,144.24,123.7,123.66,1.177e-05]
[1769512981691,7.2861,123.69,123.66,1.177e-05]
[1769512982280,226.6008,123.74,123.68,1.71131177]
[1769512982488,113.2845,123.75,123.7,1.177e-05]
[1769512982790,153.08,123.74,123.7,1.177e-05]
[1769512983892,7.2843,123.72,123.7,1.177e-05]
[1769512984292,153.08,123.74,123.7,1.177e-05]
[1769512985893,7.2843,123.72,123.7,1.177e-05]
[1769512986096,153.08,123.74,123.7,1.177e-05]
[1769512986684,7.2837,123.74,123.72,1.177e-05]
[1769512987084,156.4,123.76,123.72,1.177e-05]
[1769512987691,7.2837,123.74,123.72,1.177e-05]
[1769512987897,156.4,123.76,123.72,1.177e-05]
[1769512989000,7.2837,123.74,123.72,1.177e-05]
[1769512989198,156.4,123.76,123.72,1.177e-05]
[1769512989901,7.2837,123.74,123.72,1.177e-05]
[1769512990098,156.4,123.76,123.72,1.177e-05]
[1769512990596,7.2826,123.75,123.72,1.177e-05]
[1769512990793,156.4,123.76,123.72,1.177e-05]
[1769512991198,159.1,123.78,123.74,1.177e-05]
[1769512991797,166.3812,123.78,123.74,1.177e-05]
[1769512992399,7.2813,123.77,123.74,1.177e-05]
[1769512992599,159.1,123.78,123.74,1.177e-05]
[1769512993803,159.1,123.78,123.73,1.70864591]
[1769512994007,7.2813,123.77,123.73,1.70864591]
[1769512996914,116.33509063,123.82,123.73,5.25908424]
[1769512997106,162.68,123.81,123.75,1.70864591]
[1769512999006,169.9591,123.81,123.75,1.70864591]
[1769512999596,7.2796,123.8,123.74,3.55043833]
[1769512999804,7.2796,123.8,123.73,5.25908424]
[1769513000298,8.98824591,123.8,123.73,5.25908424]
[1769513001506,7.2801,123.79,123.73,3.55043833]
[1769513003410,1.70864591,123.76,123.71,10.83523833]
[1769513004209,1.70864591,123.77,123.71,10.83523833]
[1769513004716,1.70864591,123.77,123.73,3.55043833]